bitfinex/quotes_BTCUSD_20250803
["timestamp","ask_amount","ask_price","bid_price","bid_amount"]
[1754194327594,1.99814109,113770.0,113760.0,0.02760755]
[1754194327819,5.83717409,113770.0,113760.0,0.02760755]
[1754194328933,1.99814109,113770.0,113760.0,0.02760755]
[1754194329241,5.83717409,113770.0,113760.0,0.02760755]
[1754194331639,4.339033,113750.0,113720.0,0.3675]
[1754194331871,3.88280036,113750.0,113740.0,0.00205]
[1754194332153,4.04272867,113750.0,113740.0,0.02852]
[1754194332346,4.05649622,113750.0,113740.0,0.03156]
[1754194332795,4.08294622,113750.0,113740.0,0.03156]
[1754194333211,4.60546977,113750.0,113740.0,0.03256]
[1754194333634,4.60546977,113750.0,113740.0,0.03356]
[1754194334009,0.7664293,113750.0,113740.0,0.03356]
[1754194334217,4.6054623,113750.0,113740.0,0.03356]
[1754194336011,4.08294213,113750.0,113740.0,0.03356]
[1754194336283,4.6054623,113750.0,113740.0,0.03356]
[1754194337989,4.78128647,113750.0,113740.0,0.03356]
[1754194338711,4.78128647,113750.0,113740.0,0.03256]
[1754194338922,4.78128562,113750.0,113740.0,0.03256]
[1754194339343,4.78128562,113750.0,113740.0,0.03156]
[1754194339575,4.82373464,113750.0,113740.0,0.00304]
[1754194339811,4.83372,113750.0,113740.0,0.00304]
[1754194340275,4.83372,113750.0,113740.0,0.02951]
[1754194340513,4.847488,113750.0,113740.0,0.02951]
[1754194341174,4.8729192,113750.0,113730.0,0.02951]
[1754194341379,4.52148148,113740.0,113730.0,0.02951]
[1754194341593,4.5652439,113740.0,113730.0,0.03156]
[1754194342447,4.5916979,113740.0,113730.0,0.03156]
[1754194342623,4.5916979,113740.0,113730.0,0.03256]
[1754194343937,4.06917773,113740.0,113730.0,0.03256]
[1754194344153,4.5916979,113740.0,113730.0,0.03256]
[1754194344384,0.23014473,113740.0,113730.0,0.03256]
[1754194344604,4.5916979,113740.0,113730.0,0.03256]
[1754194345055,4.5916979,113740.0,113730.0,0.03356]
[1754194346098,0.7526649,113740.0,113730.0,0.03356]
[1754194346311,4.5916979,113740.0,113730.0,0.03356]
[1754194347575,4.59170001,113740.0,113730.0,0.03356]
[1754194348660,0.75266701,113740.0,113730.0,0.03356]
[1754194348862,4.59170001,113740.0,113730.0,0.03356]
[1754194356159,0.75266701,113740.0,113730.0,0.03356]
[1754194356388,4.59170001,113740.0,113730.0,0.03356]
[1754194356598,0.75266701,113740.0,113730.0,0.03356]
[1754194356811,4.59170001,113740.0,113730.0,0.03356]
[1754194357210,0.75266701,113740.0,113730.0,0.03356]
[1754194357413,4.59170001,113740.0,113730.0,0.03356]
[1754194359426,4.59170859,113740.0,113730.0,0.03356]
[1754194360263,0.75267559,113740.0,113730.0,0.03356]
[1754194360466,4.59170859,113740.0,113730.0,0.03356]
[1754194361306,0.75267559,113740.0,113730.0,0.03356]
[1754194361461,4.59170859,113740.0,113730.0,0.03356]
[1754194361808,4.59171047,113740.0,113730.0,0.03356]
[1754194363428,0.75267747,113740.0,113730.0,0.03356]
[1754194363631,4.59171047,113740.0,113730.0,0.03356]
[1754194365455,0.75267747,113740.0,113730.0,0.03356]
[1754194365671,4.59171047,113740.0,113730.0,0.03356]
[1754194366355,4.61546338,113740.0,113730.0,0.03356]
[1754194368930,4.61546338,113740.0,113730.0,0.03256]
[1754194369500,4.61546338,113740.0,113730.0,0.03156]
[1754194373099,4.61547458,113740.0,113730.0,0.03156]
[1754194373720,0.77644158,113740.0,113730.0,0.03156]
[1754194373946,4.61547458,113740.0,113730.0,0.03156]
[1754194374549,4.61548514,113740.0,113730.0,0.03156]
[1754194376188,4.61548539,113740.0,113730.0,0.03156]
[1754194378720,4.61548539,113740.0,113730.0,0.02951]
[1754194380937,0.77645239,113740.0,113730.0,0.02951]
[1754194381176,4.61548507,113740.0,113730.0,0.02951]
[1754194381650,4.61548512,113740.0,113730.0,0.02951]
[1754194382337,4.61548512,113740.0,113730.0,0.00304]
[1754194383462,4.61548512,113740.0,113730.0,0.02838]
[1754194383716,4.60722599,113740.0,113730.0,0.02838]
[1754194383931,0.77645134,113740.0,113730.0,0.02838]
[1754194384150,4.61548434,113740.0,113730.0,0.02838]
[1754194385707,4.63016434,113740.0,113720.0,0.05631555]
[1754194385960,4.49535317,113730.0,113720.0,0.05631555]
[1754194386183,4.53914912,113730.0,113720.0,0.05631555]
[1754194386388,4.59169243,113730.0,113720.0,0.05834555]
[1754194387501,4.59169243,113730.0,113720.0,0.05934555]
[1754194387694,4.60546234,113730.0,113720.0,0.05934555]
[1754194387910,4.08294217,113730.0,113720.0,0.05934555]
[1754194388118,4.62921525,113730.0,113720.0,0.05934555]
[1754194388322,4.60546234,113730.0,113720.0,0.05934555]
[1754194388818,4.60546234,113730.0,113720.0,0.06034555]
[1754194394010,5.14266251,113730.0,113720.0,0.02997555]
[1754194394236,5.35971953,113730.0,113720.0,0.02997555]
[1754194394449,5.16011153,113730.0,113720.0,0.02997555]
[1754194394668,5.14634162,113730.0,113720.0,0.02997555]
[1754194394864,5.13166162,113730.0,113720.0,0.02797555]
[1754194395125,5.13166162,113730.0,113720.0,0.05631555]
[1754194397603,5.14543167,113730.0,113720.0,0.05631555]
[1754194400148,1.33015158,113730.0,113720.0,0.05631555]
[1754194400537,5.16918458,113730.0,113720.0,0.05631555]
[1754194400745,4.64663663,113730.0,113720.0,0.05631555]
[1754194402421,0.82228363,113730.0,113720.0,0.02797555]
[1754194402558,4.66131663,113730.0,113720.0,0.02797555]
[1754194402784,5.1838368,113730.0,113720.0,0.02797555]
[1754194403502,1.3448038,113730.0,113720.0,0.02797555]
[1754194403730,5.1691568,113730.0,113720.0,0.02797555]
[1754194403958,5.1691568,113730.0,113720.0,0.05331555]
[1754194404160,5.1691568,113730.0,113720.0,0.05631555]
[1754194405284,4.64663663,113730.0,113720.0,0.05631555]
[1754194406114,4.63286658,113730.0,113720.0,0.05631555]
[1754194408045,5.15538675,113730.0,113720.0,0.02797555]
[1754194408254,5.17006675,113730.0,113720.0,0.02797555]
[1754194408459,4.63286658,113730.0,113720.0,0.02797555]
[1754194408663,4.70240076,113730.0,113720.0,0.05331555]
[1754194408888,4.70240076,113730.0,113720.0,0.05639555]
[1754194408889,5.16915724,113730.0,113720.0,0.05639555]
[1754194409132,4.1241169,113730.0,113720.0,0.05639555]
[1754194409347,5.16915724,113730.0,113720.0,0.05639555]
[1754194413482,6.33012424,113730.0,113720.0,0.05639555]
[1754194413826,1.33012424,113730.0,113720.0,0.05639555]
[1754194414040,6.33012424,113730.0,113720.0,0.05639555]
[1754194417935,6.33013026,113730.0,113720.0,0.05639555]
[1754194419832,5.80761009,113730.0,113720.0,0.05639555]
[1754194422726,0.80761009,113730.0,113720.0,0.05639555]
[1754194422901,5.80761009,113730.0,113720.0,0.05639555]
[1754194423524,5.47095009,113730.0,113720.0,0.05639555]
[1754194423900,5.51943202,113730.0,113720.0,0.05639555]
[1754194424115,5.50566155,113730.0,113720.0,0.05639555]
[1754194424591,5.63942155,113730.0,113720.0,0.05639555]
[1754194425813,0.63942155,113730.0,113720.0,0.05639555]
[1754194426030,5.63942155,113730.0,113720.0,0.05639555]
[1754194426948,5.19874899,113730.0,113720.0,0.05639555]
[1754194427155,5.72126916,113730.0,113720.0,0.05639555]
[1754194429701,5.06498899,113730.0,113720.0,0.05854555]
[1754194429910,5.72122916,113730.0,113720.0,0.05854555]
[1754194430931,5.19870899,113730.0,113720.0,0.05854555]
[1754194431136,5.72122916,113730.0,113720.0,0.05854555]
[1754194432156,5.70472212,113730.0,113720.0,0.05854555]
[1754194432390,5.72123323,113730.0,113720.0,0.05854555]
[1754194433044,5.06499306,113730.0,113720.0,0.05854555]
[1754194433317,5.19871306,113730.0,113720.0,0.58106572]
[1754194433522,5.19871306,113730.0,113720.0,0.05854555]
[1754194434721,5.18494257,113730.0,113720.0,0.05854555]
[1754194434911,5.7074616,113730.0,113720.0,0.05854555]
[1754194435167,5.70746312,113730.0,113720.0,0.05854555]
[1754194436456,0.70746312,113730.0,113720.0,0.05854555]
[1754194436667,5.70746312,113730.0,113720.0,0.05854555]
[1754194437070,6.26790757,113730.0,113720.0,0.02797555]
[1754194437709,6.31338459,113730.0,113720.0,0.02797555]
[1754194438348,1.31338459,113730.0,113720.0,0.02797555]
[1754194438562,6.31338459,113730.0,113720.0,0.02797555]
[1754194441161,6.48923968,113730.0,113720.0,0.02797555]
[1754194441632,6.31338459,113730.0,113720.0,0.02797555]
[1754194441871,6.46447473,113730.0,113720.0,0.02797555]
[1754194442105,6.48923899,113730.0,113720.0,0.02797555]
[1754194442607,6.5030121,113730.0,113720.0,0.02797555]
[1754194443290,6.5050121,113730.0,113720.0,0.02797555]
[1754194444029,6.5300121,113730.0,113720.0,0.02797555]
[1754194444432,1.5300121,113730.0,113720.0,0.02797555]
[1754194444776,6.51624139,113730.0,113720.0,0.02797555]
[1754194445266,6.3403863,113730.0,113720.0,0.02797555]
[1754194445460,1.3403863,113730.0,113720.0,0.02797555]
[1754194445661,6.3403863,113730.0,113720.0,0.02797555]
[1754194447416,6.35415722,113730.0,113720.0,0.02797555]
[1754194448025,5.30911688,113730.0,113720.0,0.02797555]
[1754194448244,6.35415722,113730.0,113720.0,0.02797555]
[1754194448675,1.35415722,113730.0,113720.0,0.02797555]
[1754194448886,6.35415722,113730.0,113720.0,0.02797555]
[1754194450652,1.35415722,113730.0,113720.0,0.02797555]
[1754194450896,6.35415722,113730.0,113720.0,0.02797555]
[1754194452344,6.34014722,113730.0,113720.0,0.02797555]
[1754194452775,6.34014722,113730.0,113720.0,0.05195555]
[1754194453646,1.34014722,113730.0,113720.0,0.05195555]
[1754194453875,6.34014722,113730.0,113720.0,0.05195555]
[1754194454704,1.34014722,113730.0,113720.0,0.05195555]
[1754194454846,6.34014722,113730.0,113720.0,0.05500555]
[1754194455712,1.34014722,113730.0,113720.0,0.05500555]
[1754194455903,6.34014722,113730.0,113720.0,0.05500555]
[1754194457058,6.3401417,113730.0,113720.0,0.05500555]
[1754194457626,6.32637078,113730.0,113720.0,0.05500555]
[1754194458493,1.32637078,113730.0,113720.0,0.05500555]
[1754194458864,6.32637078,113730.0,113720.0,0.05500555]
[1754194460234,6.32636742,113730.0,113720.0,0.05500555]
[1754194460617,6.34013824,113730.0,113720.0,0.05500555]
[1754194461414,6.35915006,113730.0,113720.0,0.05500555]
[1754194462446,6.35915061,113730.0,113720.0,0.05500555]
[1754194462974,1.35915061,113730.0,113720.0,0.05500555]
[1754194463178,5.31411027,113730.0,113720.0,0.05500555]
[1754194463385,6.35915061,113730.0,113720.0,0.05500555]
[1754194463590,6.35915061,113730.0,113720.0,0.03102555]
[1754194463808,6.37343061,113730.0,113720.0,0.02797555]
[1754194465311,6.35915061,113730.0,113720.0,0.02797555]
[1754194466629,6.35915061,113730.0,113720.0,0.05500555]
[1754194471404,6.35915458,113730.0,113720.0,0.05500555]
[1754194474274,1.35915458,113730.0,113720.0,0.05500555]
[1754194474420,6.35915458,113730.0,113720.0,0.05500555]
[1754194474607,1.35915458,113730.0,113720.0,0.05500555]
[1754194474812,6.35915458,113730.0,113720.0,0.05500555]
[1754194476295,6.35388376,113730.0,113720.0,0.02797555]
[1754194476776,6.35388376,113730.0,113720.0,0.05313555]
[1754194477168,6.35388983,113730.0,113720.0,0.02797555]
[1754194477339,6.36781983,113730.0,113720.0,0.02797555]
[1754194477871,6.35388983,113730.0,113720.0,0.02797555]
[1754194478406,6.35388983,113730.0,113720.0,0.05622555]
[1754194478619,6.52974492,113730.0,113720.0,0.05622555]
[1754194478915,6.54351591,113730.0,113720.0,0.05622555]
[1754194479759,1.54351591,113730.0,113720.0,0.05622555]
[1754194479970,6.54351591,113730.0,113720.0,0.05622555]
[1754194480421,6.54343591,113730.0,113720.0,0.05622555]
[1754194485712,6.54343594,113730.0,113720.0,0.05622555]
[1754194486300,6.54343594,113730.0,113720.0,0.02797555]
[1754194486481,6.55736594,113730.0,113720.0,0.02797555]
[1754194486675,6.54343594,113730.0,113720.0,0.02797555]
[1754194487098,6.54343594,113730.0,113720.0,0.05622555]
[1754194487300,1.54343594,113730.0,113720.0,0.05622555]
[1754194487506,6.54343594,113730.0,113720.0,0.05622555]
[1754194487714,6.52966495,113730.0,113720.0,0.05622555]
[1754194490539,6.54343629,113730.0,113720.0,0.05622555]
[1754194490710,6.54343612,113730.0,113720.0,0.05622555]
[1754194492780,6.55736612,113730.0,113720.0,0.02797555]
[1754194492982,6.54343612,113730.0,113720.0,0.02797555]
[1754194493180,6.56088514,113730.0,113720.0,0.05622555]
[1754194493439,6.62231169,113730.0,113720.0,0.02797555]
[1754194493823,6.59060538,113730.0,113720.0,0.02797555]
[1754194494270,6.62229673,113730.0,113720.0,0.02797555]
[1754194494412,2.43930538,113730.0,113720.0,0.02797555]
[1754194494612,7.43930538,113730.0,113720.0,0.02797555]
[1754194494828,7.42553404,113730.0,113720.0,0.02797555]
[1754194495031,7.42552409,113730.0,113720.0,0.02797555]
[1754194497587,7.40969782,113730.0,113720.0,0.02224363]
[1754194497855,7.42347078,113730.0,113720.0,0.01824363]
[1754194498691,2.42347078,113730.0,113720.0,0.01824363]
[1754194498912,7.42347078,113730.0,113720.0,0.01824363]
[1754194499137,7.8845067,113730.0,113720.0,0.00942626]
[1754194499377,7.934818,113730.0,113720.0,0.00942626]
[1754194499563,7.486118,113730.0,113720.0,0.00060889]
[1754194499763,2.50654321,113730.0,113720.0,0.00060889]
[1754194500018,5.20087055,113720.0,113710.0,0.0004]
[1754194500231,5.95772612,113720.0,113710.0,0.0004]
[1754194500484,0.41833504,113710.0,113700.0,0.02635]
[1754194500681,6.14196465,113710.0,113700.0,0.02838]
[1754194500875,6.16727595,113710.0,113700.0,0.02838]
[1754194501077,6.18105046,113710.0,113700.0,0.02838]
[1754194501292,6.20751546,113710.0,113700.0,0.02838]
[1754194502070,5.25879797,113710.0,113700.0,0.02838]
[1754194502294,5.22610721,113710.0,113700.0,0.55090017]
[1754194502502,5.23070615,113710.0,113700.0,0.02838]
[1754194502716,5.09710615,113710.0,113700.0,0.55090017]
[1754194502953,5.19964221,113710.0,113700.0,0.55090017]
[1754194503172,5.19964221,113710.0,113700.0,0.02838]
[1754194503394,5.19964221,113710.0,113700.0,0.55090017]
[1754194504045,5.19964221,113710.0,113700.0,0.02938]
[1754194504289,5.19964221,113710.0,113700.0,0.55190017]
[1754194504905,0.19964221,113710.0,113700.0,0.55190017]
[1754194505313,5.19964221,113710.0,113700.0,0.02938]
[1754194507497,5.06604221,113710.0,113700.0,0.02938]
[1754194507629,5.19964221,113710.0,113700.0,0.02938]
[1754194509292,0.19964221,113710.0,113700.0,0.02938]
[1754194509497,5.19964221,113710.0,113700.0,0.02938]
[1754194511562,5.18063039,113710.0,113700.0,0.55190017]
[1754194511770,5.19962103,113710.0,113700.0,0.55190017]
[1754194512852,5.06602103,113710.0,113700.0,0.55190017]
[1754194513071,5.19962103,113710.0,113700.0,1.07442034]
[1754194513312,5.18063039,113710.0,113700.0,0.55190017]
[1754194513528,5.18061199,113710.0,113700.0,0.55190017]
[1754194514108,5.04701199,113710.0,113700.0,0.55190017]
[1754194514314,5.18061199,113710.0,113700.0,0.55190017]
[1754194514634,5.18061199,113710.0,113700.0,0.02938]
[1754194514838,5.72844346,113710.0,113700.0,0.02938]
[1754194515218,5.71466895,113710.0,113700.0,0.02938]
[1754194515510,5.68935765,113710.0,113700.0,0.02938]
[1754194516366,5.70835036,113710.0,113700.0,0.02938]
[1754194516775,5.68935765,113710.0,113700.0,0.02938]
[1754194517771,5.75889183,113710.0,113700.0,0.02938]
[1754194517971,5.68935765,113710.0,113700.0,0.02938]
[1754194518171,5.70313002,113710.0,113700.0,0.02938]
[1754194519603,5.56953002,113710.0,113700.0,0.02938]
[1754194519833,5.70313002,113710.0,113700.0,0.02938]
[1754194520679,5.72212108,113710.0,113700.0,0.02908568]
[1754194524085,0.72212108,113710.0,113700.0,0.02908568]
[1754194524290,5.72212108,113710.0,113700.0,0.02908568]
[1754194526851,0.70313002,113710.0,113700.0,0.02908568]
[1754194527058,5.18060985,113710.0,113700.0,0.02908568]
[1754194527802,0.18060985,113710.0,113700.0,0.02908568]
[1754194528012,5.18060985,113710.0,113700.0,0.02908568]
[1754194528496,5.18060985,113710.0,113700.0,0.55160585]
[1754194528497,5.18056985,113710.0,113700.0,0.55160585]
[1754194528831,5.16679748,113710.0,113700.0,0.55160585]
[1754194529941,5.16679748,113710.0,113700.0,0.02908568]
[1754194530162,5.16679748,113710.0,113700.0,0.55160585]
[1754194530359,5.16679748,113710.0,113700.0,0.02908568]
[1754194530581,5.16679748,113710.0,113700.0,0.55160585]
[1754194530777,5.1805747,113710.0,113700.0,0.55160585]
[1754194530990,0.1805747,113710.0,113700.0,0.55160585]
[1754194531197,5.1805747,113710.0,113700.0,0.55160585]
[1754194531678,5.19957743,113710.0,113700.0,0.55160585]
[1754194532200,0.06601743,113710.0,113700.0,0.55160585]
[1754194532411,5.19107743,113710.0,113700.0,0.55160585]
[1754194532635,5.1720747,113710.0,113700.0,0.55160585]
[1754194535187,0.1720747,113710.0,113700.0,0.55160585]
[1754194535396,5.1720747,113710.0,113700.0,0.55160585]
[1754194536082,5.17208585,113710.0,113700.0,0.55160585]
[1754194536720,5.015257,113710.0,113700.0,0.55160585]
[1754194536926,5.02902897,113710.0,113700.0,0.55160585]
[1754194537146,5.015257,113710.0,113700.0,0.55160585]
[1754194537754,5.015257,113710.0,113700.0,0.60519001]
[1754194537973,0.13356,113710.0,113700.0,1.12771018]
[1754194538193,5.015257,113710.0,113700.0,0.60519001]
[1754194539489,0.13356,113710.0,113700.0,0.60519001]
[1754194539719,5.015257,113710.0,113700.0,0.60519001]
[1754194539931,4.69988371,113710.0,113700.0,0.55160585]
[1754194540139,4.69988371,113710.0,113700.0,1.41412602]
[1754194540921,4.69988371,113710.0,113700.0,0.8341644]
[1754194541100,4.83344371,113710.0,113700.0,0.8341644]
[1754194541308,0.14733171,113710.0,113700.0,0.8341644]
[1754194541475,0.14733171,113710.0,113700.0,0.91762084]
[1754194541787,4.83344371,113710.0,113700.0,0.91762084]
[1754194543699,0.14733171,113710.0,113700.0,0.91762084]
[1754194543936,4.83344371,113710.0,113700.0,0.91762084]
[1754194544382,4.83344371,113710.0,113700.0,0.91862084]
[1754194544611,4.83344371,113710.0,113700.0,0.92162084]
[1754194547852,4.83344371,113710.0,113700.0,0.8381644]
[1754194549057,0.14733171,113710.0,113700.0,0.8381644]
[1754194549266,4.83344371,113710.0,113700.0,0.8381644]
[1754194552368,0.14733171,113710.0,113700.0,0.8381644]
[1754194552582,4.83344371,113710.0,113700.0,0.8381644]
[1754194552805,4.83344371,113710.0,113700.0,0.92202084]
[1754194556307,4.83344371,113710.0,113700.0,0.45694212]
[1754194556585,4.83344371,113710.0,113700.0,0.8381644]
[1754194562931,4.83344371,113710.0,113700.0,1.41956524]
[1754194564612,4.83344371,113710.0,113700.0,0.37308568]
[1754194564824,4.83344371,113710.0,113700.0,1.41956524]
[1754194565033,4.83344371,113710.0,113700.0,0.89632546]
[1754194565336,4.83344371,113710.0,113700.0,1.41956524]
[1754194565479,4.83344371,113710.0,113700.0,1.5084028]
[1754194565876,4.83344371,113710.0,113700.0,0.98516302]
[1754194567242,4.84169421,113710.0,113700.0,0.98516302]
[1754194567733,4.84169421,113710.0,113700.0,1.5084028]
[1754194569235,0.15558221,113710.0,113700.0,1.5084028]
[1754194569657,4.84169421,113710.0,113700.0,1.6419228]
[1754194569867,4.84169421,113710.0,113700.0,1.5084028]
[1754194572825,4.70813421,113710.0,113700.0,1.6419228]
[1754194573028,0.14729171,113710.0,113700.0,1.6419228]
[1754194573253,0.01377171,113710.0,113700.0,1.6419228]
[1754194573454,0.01377171,113710.0,113700.0,1.6683738]
[1754194574548,4.819632,113720.0,113710.0,0.34]
[1754194574745,4.82788605,113720.0,113710.0,0.95207734]
[1754194574949,4.82788605,113720.0,113710.0,0.98098734]
[1754194575783,4.82788605,113720.0,113710.0,0.97887734]
[1754194577551,4.82788605,113720.0,113710.0,0.97987734]
[1754194577770,4.84165597,113720.0,113710.0,0.97987734]
[1754194578598,4.70813597,113720.0,113710.0,0.97987734]
[1754194578818,4.84165597,113720.0,113710.0,0.97987734]
[1754194580211,4.84165597,113720.0,113710.0,0.98087734]
[1754194580814,4.84165597,113720.0,113710.0,1.11435734]
[1754194581420,4.84165314,113720.0,113710.0,1.11435734]
[1754194581614,0.15554114,113720.0,113710.0,1.11435734]
[1754194582029,4.84165314,113720.0,113710.0,1.11435734]
[1754194583836,4.84165314,113720.0,113710.0,1.11646734]
[1754194587062,4.84165314,113720.0,113710.0,0.59322756]
[1754194587282,4.84164879,113720.0,113710.0,1.11646734]
[1754194590360,4.84164879,113720.0,113710.0,0.59322756]
[1754194590566,4.84164879,113720.0,113710.0,1.11646734]
[1754194592088,4.84164879,113720.0,113710.0,1.02762978]
[1754194595971,4.84164825,113720.0,113710.0,1.02762978]
[1754194598270,4.84164825,113720.0,113710.0,0.89414978]
[1754194602751,4.84164825,113720.0,113710.0,0.37091]
[1754194602959,4.84164825,113720.0,113710.0,0.89203978]
[1754194603577,4.84164825,113720.0,113710.0,0.98087734]
[1754194603786,4.84164825,113720.0,113710.0,0.45763756]
[1754194604649,4.84164825,113720.0,113710.0,0.98087734]
[1754194606267,4.84164825,113720.0,113710.0,0.45763756]
[1754194606452,4.84164825,113720.0,113710.0,0.98087734]
[1754194607083,0.15553625,113720.0,113710.0,0.98087734]
[1754194607281,4.84164825,113720.0,113710.0,0.98087734]
[1754194607500,4.84164825,113720.0,113710.0,1.11435734]
[1754194607733,4.84164825,113720.0,113710.0,0.45763756]
[1754194608189,4.84164825,113720.0,113710.0,0.45976756]
[1754194610247,0.15553625,113720.0,113710.0,0.45976756]
[1754194610403,4.84164825,113720.0,113710.0,0.59324756]
[1754194610606,4.84164825,113720.0,113710.0,0.45976756]
[1754194612252,0.15553625,113720.0,113710.0,0.45976756]
[1754194612468,4.84164825,113720.0,113710.0,0.59320756]
[1754194612948,4.84164825,113720.0,113710.0,0.45976756]
[1754194613124,4.84165421,113720.0,113710.0,0.45976756]
[1754194613354,0.15554221,113720.0,113710.0,0.45976756]
[1754194613538,4.84165421,113720.0,113710.0,0.45976756]
[1754194614959,4.84165421,113720.0,113710.0,0.37093]
[1754194615573,4.84165432,113720.0,113710.0,0.37093]
[1754194616507,0.15554232,113720.0,113710.0,0.37093]
[1754194616729,4.84165432,113720.0,113710.0,0.50437]
[1754194617141,4.84165432,113720.0,113710.0,0.37093]
[1754194617992,4.84165432,113720.0,113710.0,0.45976756]
[1754194619816,5.3648941,113720.0,113710.0,0.45976756]
[1754194622391,4.84165432,113720.0,113710.0,0.37093]
[1754194622820,5.3648941,113720.0,113710.0,0.37093]
[1754194623410,0.6787821,113720.0,113710.0,0.37093]
[1754194623648,5.3648941,113720.0,113710.0,0.37093]
[1754194623829,4.84165432,113720.0,113710.0,0.37093]
[1754194624282,4.84165432,113720.0,113710.0,0.40198537]
[1754194624620,0.15554232,113720.0,113710.0,0.40198537]
[1754194624842,4.84165432,113720.0,113710.0,0.40198537]
[1754194627939,4.64010012,113720.0,113710.0,0.40198537]
[1754194628118,4.640101,113720.0,113710.0,0.40198537]
[1754194628313,4.65387031,113720.0,113710.0,0.40198537]
[1754194628519,4.640101,113720.0,113710.0,0.40198537]
[1754194629099,5.16334078,113720.0,113710.0,0.40198537]
[1754194630592,5.1771102,113720.0,113710.0,0.40198537]
[1754194636071,0.6704492,113720.0,113710.0,0.40198537]
[1754194636328,5.1771102,113720.0,113710.0,0.40198537]
[1754194637402,4.65387042,113720.0,113710.0,0.40198537]
[1754194637575,5.1771102,113720.0,113710.0,0.40198537]
[1754194638954,5.1771102,113720.0,113710.0,0.37093]
[1754194639139,5.19362187,113720.0,113710.0,0.3688]
[1754194639891,4.53694209,113720.0,113710.0,0.3688]
[1754194640103,5.20183687,113720.0,113710.0,0.37096]
[1754194642833,5.20183687,113720.0,113710.0,0.3688]
[1754194643471,4.67859709,113720.0,113710.0,0.37096]
[1754194643671,5.20183405,113720.0,113710.0,0.37096]
[1754194648252,5.20183332,113720.0,113710.0,0.37096]
[1754194648451,0.69517232,113720.0,113710.0,0.37096]
[1754194649086,5.20183332,113720.0,113710.0,0.37096]
[1754194649293,5.20183332,113720.0,113710.0,0.45979756]
[1754194649543,5.20183328,113720.0,113710.0,0.45979756]
[1754194652595,5.20183327,113720.0,113710.0,0.45979756]
[1754194654817,5.18532442,113720.0,113710.0,0.45979756]
[1754194655030,4.52868464,113720.0,113710.0,0.98303734]
[1754194655260,4.51491522,113720.0,113710.0,0.98303734]
[1754194655443,4.506661,113720.0,113710.0,1.00948634]
[1754194658591,4.52042911,113720.0,113710.0,1.00948634]
[1754194659000,4.52042911,113720.0,113710.0,1.14288634]
[1754194666216,4.506661,113720.0,113710.0,1.14288634]
[1754194667395,0.13387529,113730.0,113710.0,1.14288634]
[1754194667600,4.64053629,113730.0,113720.0,0.49910838]
[1754194667795,4.64053629,113730.0,113720.0,0.58574756]
[1754194668248,4.64053629,113730.0,113720.0,0.61219656]
[1754194668659,4.64053629,113730.0,113720.0,0.61538656]
[1754194669144,4.65430426,113730.0,113720.0,0.61538656]
[1754194669714,5.17754404,113730.0,113720.0,0.61538656]
[1754194675909,0.67088304,113730.0,113720.0,0.61538656]
[1754194676123,5.17754404,113730.0,113720.0,0.61538656]
[1754194677018,0.67088304,113730.0,113720.0,0.61538656]
[1754194677232,5.17754404,113730.0,113720.0,0.61538656]
[1754194678999,5.17754404,113730.0,113720.0,0.61743656]
[1754194680229,4.65430426,113730.0,113720.0,0.61743656]
[1754194680431,5.17754404,113730.0,113720.0,0.61743656]
[1754194680665,0.67088304,113730.0,113720.0,0.61743656]
[1754194680893,5.04414404,113730.0,113720.0,0.61743656]
[1754194681094,5.17750404,113730.0,113720.0,0.61743656]
[1754194681623,4.52090426,113730.0,113720.0,0.61743656]
[1754194681836,4.52090426,113730.0,113720.0,1.14067634]
[1754194682999,4.52090426,113730.0,113720.0,1.14267634]
[1754194683966,4.50713629,113730.0,113720.0,1.14267634]
[1754194684613,4.50713629,113730.0,113720.0,1.14567634]
[1754194687136,4.52090315,113730.0,113720.0,1.14567634]
[1754194687559,4.52090315,113730.0,113720.0,0.62243656]
[1754194687766,0.51424215,113730.0,113720.0,1.14567634]
[1754194687973,0.01424215,113730.0,113720.0,1.14567634]
[1754194688190,0.51424215,113730.0,113720.0,1.14567634]
[1754194688395,0.01424215,113730.0,113720.0,1.14567634]
[1754194688574,0.01424215,113730.0,113720.0,1.16312536]
[1754194698020,0.00047529,113730.0,113720.0,1.16312536]
[1754194699669,0.01424106,113730.0,113720.0,1.16312536]
[1754194702942,0.01424106,113730.0,113720.0,0.63988558]
[1754194703159,0.01424106,113730.0,113720.0,1.16312536]
[1754194704984,0.01424106,113730.0,113720.0,1.77499798]
[1754194705205,0.01424106,113730.0,113720.0,1.2517582]
[1754194705433,0.00047529,113730.0,113720.0,1.79999798]
[1754194705613,0.00047529,113730.0,113720.0,1.2767582]
[1754194706024,0.00047529,113730.0,113720.0,1.2737582]
[1754194706167,0.00047529,113730.0,113720.0,0.75851842]
[1754194706384,0.00047529,113730.0,113720.0,1.3725682]
[1754194706796,0.00047529,113730.0,113720.0,1.3525682]
[1754194707110,0.00047529,113730.0,113720.0,1.3775682]
[1754194708793,0.01424026,113730.0,113720.0,1.3775682]
[1754194714741,0.01424026,113730.0,113720.0,1.3525682]
[1754194715000,0.01424026,113730.0,113720.0,1.3775682]
[1754194715230,0.01424026,113730.0,113720.0,1.90080798]
[1754194715764,0.01585957,113750.0,113740.0,0.8806888]
[1754194716000,0.01585957,113750.0,113740.0,1.10490395]
[1754194716267,0.08419198,113760.0,113740.0,1.13118395]
[1754194716479,0.08419198,113760.0,113750.0,0.65875758]
[1754194716653,0.08419198,113760.0,113750.0,0.65655978]
[1754194717591,0.08419198,113760.0,113750.0,0.15976]
[1754194717778,0.08419198,113760.0,113750.0,0.2393078]
[1754194717910,0.08419198,113760.0,113750.0,0.23711]
[1754194718113,0.09878937,113760.0,113750.0,0.23711]
[1754194718346,0.01459739,113760.0,113750.0,0.57711]
[1754194718562,0.01348,113770.0,113750.0,1.12863978]
[1754194718764,5.05162226,113770.0,113760.0,0.1334]
[1754194718988,5.05162226,113770.0,113760.0,0.22223756]
[1754194719203,5.06538537,113770.0,113760.0,0.22223756]
[1754194719650,5.05714389,113770.0,113760.0,0.22223756]
[1754194719885,5.05714389,113770.0,113760.0,0.22423756]
[1754194720366,4.53390411,113770.0,113760.0,0.74747734]
[1754194720592,4.52042411,113770.0,113760.0,0.77052734]
[1754194721004,4.52042411,113770.0,113760.0,0.77152734]
[1754194721210,4.53452939,113770.0,113760.0,0.24828756]
[1754194721634,4.53452939,113770.0,113760.0,0.22523756]
[1754194721839,4.54800939,113770.0,113760.0,0.22523756]
[1754194722742,0.02786839,113770.0,113760.0,0.22523756]
[1754194723148,4.53452939,113770.0,113760.0,0.59352756]
[1754194723349,4.53452939,113770.0,113760.0,1.11676734]
[1754194724900,4.53452939,113770.0,113760.0,0.59352756]
[1754194725112,4.53452939,113770.0,113760.0,0.59151756]
[1754194725364,4.53452939,113770.0,113760.0,0.45811756]
[1754194725568,4.53452939,113770.0,113760.0,0.50276]
[1754194725775,5.07124917,113770.0,113760.0,0.47648]
[1754194725980,5.07124917,113770.0,113760.0,0.502917]
[1754194728139,5.04338078,113770.0,113760.0,0.502917]